bitfinex-derivatives/quotes_SOLF0:USTF0_20250312
["timestamp","ask_amount","ask_price","bid_price","bid_amount"]
[1741806299857,32.26,124.38,124.36,8.0424]
[1741806300263,0.0514673,124.38,124.33,53.18987424]
[1741806300465,0.0514673,124.38,124.36,0.05965635]
[1741806301565,0.0514673,124.38,124.37,8.0419]
[1741806303361,0.0514673,124.38,124.36,0.05965635]
[1741806303767,32.3114673,124.38,124.36,0.05965635]
[1741806303967,32.3114673,124.38,124.32,32.26]
[1741806304369,40.3530673,124.38,124.32,32.26]
[1741806304568,32.3114673,124.38,124.32,32.26]
[1741806305065,32.3114673,124.38,124.34,0.0518342]
[1741806305975,8.0429,124.36,124.34,0.0518342]
[1741806306173,32.3114673,124.38,124.34,0.0518342]
[1741806307767,32.3114673,124.38,124.37,8.0419]
[1741806307970,0.0514673,124.38,124.37,8.0419]
[1741806308773,0.0514673,124.38,124.34,0.0518342]
[1741806308973,0.0514673,124.38,124.36,8.0423]
[1741806309177,0.0514673,124.38,124.34,0.0518342]
[1741806310678,0.0514673,124.38,124.37,8.0419]
[1741806311976,0.0514673,124.38,124.36,8.0422]
[1741806312276,0.0514673,124.38,124.34,0.0518342]
[1741806312477,8.0930673,124.38,124.34,0.0518342]
[1741806312678,8.0930673,124.38,124.35,8.0429]
[1741806312979,8.0419,124.37,124.35,8.0429]
[1741806313277,32.3114673,124.38,124.34,0.0518342]
[1741806313477,6.1737,124.37,124.34,0.0518342]
[1741806313880,27.10357424,124.37,124.31,8.0454]
[1741806314082,20.92987424,124.35,124.28,241.14]
[1741806314279,53.18987424,124.35,124.28,241.14]
[1741806314475,53.18987424,124.35,124.3,8.0459]
[1741806314781,8.0453,124.32,124.28,241.14]
[1741806314982,8.0453,124.32,124.31,0.05503146]
[1741806315179,53.18987424,124.35,124.31,0.05503146]
[1741806315380,8.10482706,124.33,124.31,0.05503146]
[1741806315581,0.06002706,124.33,124.31,0.05503146]
[1741806315981,0.06002706,124.33,124.32,8.0452]
[1741806316581,2.706e-05,124.33,124.32,8.0452]
[1741806316780,2.0713,124.37,124.35,8.0426]
[1741806316980,2.0713,124.37,124.3,32.26]
[1741806316981,8.0407,124.39,124.33,20.92987424]
[1741806317186,8.0407,124.39,124.33,53.18987424]
[1741806317375,8.0407,124.39,124.36,8.0423]
[1741806317579,42.4334,124.4,124.36,8.0423]
[1741806318087,8.0413,124.38,124.37,0.05434151]
[1741806318687,0.05721453,124.39,124.3,65.79167187]
[1741806318889,67.92477187,124.4,124.3,32.26]
[1741806319093,2.0907,124.39,124.3,65.79167187]
[1741806319390,2.0907,124.39,124.32,33.53167187]
[1741806319685,2.0907,124.39,124.34,0.06191787]
[1741806319891,0.05710428,124.37,124.34,0.06191787]
[1741806320890,8.0432,124.35,124.34,0.06191787]
[1741806321092,32.26,124.35,124.28,273.4]
[1741806321282,2.0054,124.34,124.28,273.4]
[1741806321593,2.0054,124.34,124.28,306.93167187]
[1741806321889,32.26,124.35,124.28,306.93167187]
[1741806322390,0.05515404,124.33,124.3,0.05079164]
[1741806322593,0.05515404,124.33,124.32,8.0452]
[1741806322893,8.09515404,124.33,124.25,124.10670449]
[1741806323092,67.06334374,124.26,124.2,220.783423]
[1741806323395,8.0511,124.23,124.21,23.58537864]
[1741806324000,6.06466705,124.22,124.21,23.58537864]
[1741806324191,14.11626705,124.22,124.21,23.58537864]
[1741806324495,46.39626705,124.22,124.21,12.81257864]
[1741806324695,8.0523,124.21,124.2,150.73234971]
[1741806325498,6.06466705,124.21,124.15,2.1421]
[1741806325891,0.05310026,124.19,124.15,2.1421]
[1741806326603,0.05310026,124.19,124.16,2.1552]
[1741806327499,32.33310026,124.19,124.11,0.2183]
[1741806327700,8.0562,124.15,124.11,2.3604]
[1741806327900,32.33968725,124.16,124.11,2.1421]
[1741806329201,8.0575,124.13,124.11,2.1421]
[1741806329407,32.28,124.16,124.11,2.1421]
[1741806329700,8.0582,124.12,124.09,2.1552]
[1741806330105,0.05916016,124.13,124.09,2.1552]
[1741806331402,33.53167187,124.1,123.87,458.79999649]
[1741806331600,33.4,124.09,123.99,8.0665]
[1741806331798,33.4,124.09,123.96,33.53167187]
[1741806331799,33.4,124.09,124.0,2.0153]
[1741806332007,0.06144831,124.05,124.0,2.0153]
[1741806334003,0.06144831,124.05,123.97,4.3168]
[1741806334300,66.91167187,124.06,123.97,6.3321]
[1741806334504,0.05672979,124.02,123.97,6.3321]
[1741806334703,33.39672979,124.02,123.97,6.3321]
[1741806336609,0.05672979,124.02,123.97,6.3321]
[1741806337010,0.05672979,124.02,123.98,8.0671]
[1741806337203,0.05672979,124.02,123.97,6.3321]
[1741806337399,33.53167187,123.98,123.89,1.40379185]
[1741806337608,508.13,124.01,123.84,33.53167187]
[1741806337609,261.03167187,123.97,123.84,33.53167187]
[1741806337907,0.05422884,123.95,123.85,6.3709]
[1741806338107,0.06198892,123.91,123.87,8.0741]
[1741806338799,0.06198892,123.91,123.86,8.0748]
[1741806339005,0.06198892,123.91,123.85,6.3709]
[1741806339407,0.06198892,123.91,123.87,8.0743]
[1741806340308,33.59366079,123.91,123.81,35.66777187]
[1741806340612,33.53167187,123.91,123.81,2.1361]
[1741806340813,0.05083255,123.87,123.81,2.1361]
[1741806341412,0.05083255,123.87,123.82,8.0774]
[1741806341914,34.71083255,123.87,123.82,8.0774]
[1741806342913,34.71083255,123.87,123.81,2.1361]
[1741806343614,34.71083255,123.87,123.82,8.0772]
[1741806344208,34.71083255,123.87,123.83,8.077]
[1741806344410,34.71083255,123.87,123.81,2.1361]
[1741806344809,34.71083255,123.87,123.83,8.0768]
[1741806345517,34.71083255,123.87,123.85,8.0756]
[1741806346004,34.71083255,123.87,123.81,2.1361]
[1741806346815,34.71083255,123.87,123.82,8.077]
[1741806347216,34.71083255,123.87,123.81,2.1361]
[1741806349115,34.71083255,123.87,123.84,8.076]
[1741806349818,0.05083255,123.87,123.84,8.076]
[1741806350112,0.05083255,123.87,123.81,2.1361]
[1741806350518,0.05083255,123.87,123.86,8.075]
[1741806350921,0.05083255,123.87,123.81,2.1361]
[1741806351222,0.05083255,123.87,123.85,8.0754]
[1741806351421,0.05083255,123.87,123.81,2.1361]
[1741806351821,0.05083255,123.87,123.86,8.075]
[1741806352916,0.05083255,123.87,123.81,2.1361]
[1741806353722,0.05083255,123.87,123.86,8.075]
[1741806355019,34.12,124.0,123.95,8.0687]
[1741806355219,67.85167187,124.01,123.91,34.32]
[1741806355518,67.85167187,124.01,123.89,33.53167187]
[1741806355519,34.32,124.0,123.9,34.32]
[1741806355719,34.32,124.0,123.97,8.0678]
[1741806355920,34.3,123.99,123.97,8.0678]
[1741806356222,34.28,123.99,123.97,8.12605979]
[1741806356421,34.33780184,124.0,123.97,0.05865979]
[1741806356616,0.05780184,124.0,123.99,8.0666]
[1741806356823,0.05780184,124.0,123.97,0.05865979]
[1741806358822,0.05780184,124.0,123.97,8.12585979]
[1741806359319,0.05780184,124.0,123.97,0.05865979]
[1741806359824,0.05780184,124.0,123.97,8.12595979]
[1741806360022,0.05780184,124.0,123.97,0.05865979]
[1741806360419,0.05780184,124.0,123.99,8.0666]
[1741806360820,67.61167187,124.05,123.97,0.05865979]
[1741806361020,75.67467187,124.05,123.99,8.0662]
[1741806361720,34.08,124.05,123.95,71.71697187]
[1741806361923,0.05518748,124.03,124.01,0.05420785]
[1741806362120,34.12,124.1,124.04,8.0629]
[1741806362520,33.53167187,124.09,124.02,2.2086]
[1741806362830,34.34,124.1,124.02,2.2086]
[1741806363019,33.53167187,124.09,124.02,2.2086]
[1741806363221,8.0633,124.04,123.95,36.4084]
[1741806363422,8.0633,124.04,123.96,4.2882]
[1741806363623,34.4,124.05,123.96,4.2882]
[1741806363830,0.06128543,124.01,123.98,0.0618636]
[1741806364030,34.4,124.08,123.99,67.93167187]
[1741806364935,34.4,124.08,124.03,8.0636]
[1741806365129,0.0556361,124.05,124.03,8.0636]
[1741806365327,0.0556361,124.05,124.02,0.061691]
[1741806366329,8.0637,124.04,124.02,0.061691]
[1741806366530,33.58730797,124.05,124.02,0.061691]
[1741806366727,0.0556361,124.05,124.02,0.061691]
[1741806367030,0.0556361,124.05,124.02,8.126091]
[1741806367230,0.0556361,124.05,124.02,0.061691]
[1741806367430,0.0556361,124.05,124.02,8.125891]
[1741806367633,0.0556361,124.05,124.02,0.061691]
[1741806368024,8.0633,124.04,124.02,0.061691]
[1741806368225,0.0556361,124.05,124.02,0.061691]
[1741806368431,35.42,124.04,123.96,39.7082]
[1741806368635,43.4837,124.04,123.98,8.0669]
[1741806369024,35.42,124.04,123.96,39.7082]
[1741806369227,35.42,124.04,123.99,8.0661]
[1741806369429,35.42,124.04,123.96,39.7082]
[1741806369631,0.05765076,124.03,124.0,0.05211938]
[1741806370034,6.02254956,124.03,124.0,0.05211938]
[1741806370634,5.9648988,124.02,124.0,0.05211938]
[1741806370834,14.0300988,124.02,124.0,0.05211938]
[1741806371031,33.58932263,124.03,124.0,0.05211938]
[1741806371239,8.0671,123.99,123.96,2.2086]
[1741806371536,8.0671,123.99,123.94,242.1]
[1741806371537,33.53167187,123.99,123.94,242.1]
[1741806371835,5.97558706,123.98,123.94,242.1]
[1741806372034,8.0682,123.97,123.94,242.1]
[1741806372535,5.97558706,123.96,123.94,242.15615496]
[1741806372740,5.97558706,123.95,123.94,250.22595496]
[1741806373237,2.64598706,123.95,123.94,250.22595496]
[1741806373538,0.05467581,123.97,123.94,250.22595496]
[1741806373539,0.05467581,123.97,123.96,8.0685]
[1741806374227,8.0657,124.01,123.95,37.5132]
[1741806374538,4.42783121,124.0,123.95,37.5132]
[1741806374734,68.99167187,124.03,123.95,2.0932]
[1741806374935,68.99167187,124.03,123.94,242.1]
[1741806374936,33.53167187,124.01,123.94,242.1]
[1741806375145,8.0691,123.96,123.94,242.1]
[1741806375343,35.4,123.98,123.94,242.1]
[1741806375640,35.4,123.98,123.94,242.15772446]
[1741806375641,8.12287583,123.96,123.94,242.15772446]
[1741806375844,0.05417583,123.96,123.94,0.05772446]
[1741806376434,12.49808311,123.95,123.94,2.446e-05]
[1741806376640,37.96055498,123.95,123.88,241.98]
[1741806376940,8.0736,123.89,123.84,35.52]
[1741806377436,8.0737,123.88,123.85,8.0753]
[1741806377742,8.13467402,123.88,123.85,0.05218324]
[1741806378132,0.06097402,123.88,123.85,0.05218324]
[1741806378543,37.95978237,123.87,123.85,0.05218324]
[1741806378746,35.86,123.86,123.85,0.05218324]
[1741806380142,0.06097402,123.88,123.85,0.05218324]
[1741806381649,0.06097402,123.88,123.86,8.0747]
[1741806382245,0.06097402,123.88,123.87,8.0744]
[1741806383240,270.1228591,123.95,123.9,8.0724]
[1741806383241,43.59118723,123.95,123.9,8.0724]
[1741806383541,100.59501561,123.91,123.68,33.53167187]
[1741806383843,33.53167187,123.88,123.74,33.53167187]
[1741806384037,33.53167187,123.85,123.75,6.3705]
[1741806384242,33.53167187,123.82,123.75,6.3705]
[1741806384443,43.27154914,123.81,123.73,38.8]
[1741806384650,33.53167187,123.79,123.77,0.06070614]
[1741806384950,37.9573535,123.78,123.7,2.1138]
[1741806385151,33.53167187,123.75,123.57,373.44347995]
[1741806385345,33.53167187,123.72,123.61,4.1507]
[1741806385647,39.06,123.71,123.61,4.1507]
[1741806385844,33.53167187,123.68,123.57,131.30347995]
[1741806386148,40.74,123.7,123.58,88.36237557]
[1741806386349,0.05124513,123.64,123.62,0.055944]
[1741806386541,5.91386741,123.69,123.61,242.26]
[1741806386742,0.05966739,123.64,123.61,242.26]
[1741806387140,0.05966739,123.64,123.61,242.31683591]
[1741806389844,40.7,123.69,123.61,242.31683591]
[1741806390051,40.7,123.69,123.61,282.82]
[1741806390553,48.7866,123.69,123.61,282.82]
[1741806390945,0.0605904,123.66,123.64,0.05505479]
[1741806393152,8.0887,123.65,123.64,0.05505479]
[1741806393350,8.1405904,123.66,123.58,2.2198]
[1741806393659,8.0906,123.63,123.58,2.2198]
[1741806393858,95.46332216,123.67,123.58,2.2198]
[1741806394049,8.0899,123.64,123.58,2.2198]
[1741806394454,95.46332216,123.67,123.58,2.2198]
[1741806394455,0.053261,123.62,123.6,0.05492095]
[1741806394653,95.46332216,123.67,123.6,0.05492095]
[1741806394855,0.05799302,123.62,123.6,0.05492095]
[1741806395055,55.10332216,123.65,123.6,0.05492095]
[1741806395360,0.05698938,123.62,123.6,0.05492095]
[1741806395862,55.10332216,123.67,123.6,0.05492095]
[1741806396154,95.24332216,123.69,123.6,0.05492095]
[1741806396355,95.24332216,123.69,123.61,40.14]
[1741806396753,8.0869,123.68,123.61,40.14]
[1741806396958,0.06051425,123.66,123.64,0.05640885]
[1741806398460,63.18842216,123.71,123.64,0.05640885]
[1741806398661,55.10332216,123.71,123.62,242.56]
[1741806399763,0.05672299,123.68,123.65,0.06121443]
[1741806401663,0.05672299,123.68,123.65,8.14991443]
[1741806401863,55.10332216,123.75,123.65,39.68121443]
[1741806402064,94.72332216,123.77,123.66,2.1036]
[1741806402260,55.10332216,123.75,123.68,8.0866]
[1741806402461,63.18582216,123.75,123.68,8.0866]
[1741806402656,55.10332216,123.75,123.66,2.1036]
[1741806403170,0.06207805,123.72,123.69,0.05671963]
[1741806403869,94.72332216,123.77,123.69,0.05671963]
[1741806403870,55.10332216,123.77,123.69,39.51671963]
[1741806404064,63.18462216,123.77,123.7,10.1212]
[1741806404265,55.10332216,123.77,123.7,2.0358]
[1741806404967,0.05578066,123.75,123.72,0.05379074]
[1741806406074,55.10332216,123.73,123.72,0.05379074]
[1741806406265,55.10332216,123.73,123.66,2.1036]
[1741806406466,55.10332216,123.71,123.66,2.1036]
[1741806407167,55.10332216,123.73,123.66,2.1036]
[1741806407471,0.0585281,123.7,123.67,0.06157423]
[1741806407860,0.0585281,123.7,123.67,8.14867423]
[1741806408566,0.0585281,123.7,123.67,0.06157423]
[1741806409676,0.0585281,123.7,123.68,8.0864]
[1741806409873,0.0585281,123.7,123.67,0.06157423]
[1741806410266,0.0585281,123.7,123.69,8.0861]
[1741806410466,0.0585281,123.7,123.67,0.06157423]
[1741806410869,0.0585281,123.7,123.69,8.0861]
[1741806411268,0.0585281,123.7,123.67,0.06157423]
[1741806411572,0.0585281,123.7,123.68,8.0865]
[1741806411774,0.0585281,123.7,123.67,0.06157423]
[1741806412168,0.0585281,123.7,123.69,8.0861]
[1741806412564,94.38332216,123.75,123.68,38.78]
[1741806412768,39.28,123.75,123.68,38.78]
[1741806412968,39.28,123.75,123.69,2.2009]
[1741806413170,346.10332216,123.77,123.69,2.2009]
[1741806413474,63.18452216,123.77,123.73,8.0833]
[1741806413675,0.05932014,123.74,123.73,8.0833]
[1741806419477,38.2,123.79,123.76,8.0816]
[1741806419882,46.2797,123.79,123.76,8.0816]
[1741806420083,33.86829598,123.8,123.77,8.0808]
[1741806420286,5.91394289,123.78,123.73,2.159]
[1741806420482,5.91394289,123.78,123.77,0.061816]
[1741806420677,72.00829598,123.82,123.73,2.159]
[1741806420877,0.06083964,123.79,123.76,0.05124951]
[1741806421277,0.06083964,123.79,123.78,8.0803]
[1741806421478,0.06083964,123.79,123.76,0.05124951]
[1741806421684,5.99329767,123.79,123.76,0.05124951]
[1741806421981,5.99329767,123.79,123.76,8.13264951]
[1741806422382,0.06083964,123.79,123.76,8.13264951]
[1741806422676,0.06083964,123.79,123.76,0.05124951]
[1741806423077,110.16730147,123.78,123.7,242.52]
[1741806423283,33.86829598,123.73,123.67,2.061]
[1741806423882,5.93352942,123.72,123.67,2.061]
[1741806424187,5.93352942,123.71,123.67,2.061]
[1741806424485,5.98869496,123.71,123.69,0.05754917]
[1741806425183,0.05516554,123.71,123.69,0.05754917]
[1741806425383,0.05516554,123.71,123.7,8.0855]
[1741806426783,0.05516554,123.71,123.69,37.95754917]
[1741806426984,6.00516237,123.71,123.69,37.95754917]
[1741806427175,5.94999683,123.7,123.69,0.05754917]
[1741806428989,5.94999683,123.7,123.69,8.14364917]
[1741806429185,5.94999683,123.7,123.69,0.05754917]
[1741806429684,5.94999683,123.7,123.69,8.14364917]
[1741806430086,5.94999683,123.7,123.69,0.05754917]
[1741806430983,5.94999683,123.7,123.69,8.14364917]
[1741806431689,0.05516554,123.71,123.69,0.05754917]
[1741806431892,0.05516554,123.71,123.7,8.0855]
[1741806433984,0.05516554,123.71,123.69,0.05754917]
[1741806435091,0.05516554,123.71,123.69,8.14354917]
[1741806435291,0.05516554,123.71,123.69,0.05754917]
[1741806435692,0.05516554,123.71,123.69,8.14334917]
[1741806436695,0.05516554,123.71,123.7,8.0855]
[1741806436891,0.05516554,123.71,123.69,0.05754917]
[1741806437792,0.05516554,123.71,123.69,8.14334917]
[1741806437994,0.05516554,123.71,123.69,0.05754917]
[1741806439392,0.05516554,123.71,123.69,8.14314917]
[1741806439597,0.05516554,123.71,123.69,0.05754917]
[1741806440086,0.05516554,123.71,123.7,8.0855]
[1741806440493,92.09913802,123.76,123.69,0.05754917]
[1741806440691,4.47206931,123.75,123.73,8.0832]
[1741806440891,4.47206931,123.74,123.73,8.0832]
[1741806441089,4.47206931,123.75,123.68,0.31351]
[1741806441292,43.59118723,123.8,123.7,36.98]
[1741806441293,92.05913802,123.79,123.7,36.98]
[1741806441494,4.4743389,123.78,123.7,36.98]
[1741806441691,0.05539715,123.76,123.75,8.0821]
[1741806442692,4.47609674,123.79,123.78,8.0803]
[1741806443097,43.59118723,123.8,123.78,8.0803]
[1741806443299,43.59118723,123.8,123.74,36.92]
[1741806444098,5.383e-05,123.78,123.76,0.05411222]
[1741806444592,5.383e-05,123.78,123.77,8.0808]
[1741806444796,5.383e-05,123.78,123.77,10.2759]
[1741806446498,5.383e-05,123.78,123.77,18.3559]
[1741806448602,5.383e-05,123.78,123.77,10.2759]
[1741806453112,5.383e-05,123.78,123.77,8.0808]
[1741806453913,5.383e-05,123.78,123.76,0.05411222]
[1741806455108,8.08075383,123.78,123.76,0.05411222]
[1741806455706,8.0809,123.77,123.76,0.05411222]
[1741806455907,5.383e-05,123.78,123.76,0.05411222]
[1741806457118,5.383e-05,123.78,123.77,8.0809]
[1741806457413,5.383e-05,123.78,123.76,0.05411222]
[1741806457712,5.383e-05,123.78,123.76,8.13531222]
[1741806458514,5.383e-05,123.78,123.77,8.0809]
[1741806463031,5.383e-05,123.78,123.77,10.2549]
[1741806463234,5.383e-05,123.78,123.77,12.4496]
[1741806463927,5.383e-05,123.78,123.77,20.5296]
[1741806464125,5.383e-05,123.78,123.77,12.4496]
[1741806464321,5.383e-05,123.78,123.77,20.5296]
[1741806465633,2.1122,123.89,123.78,16.1604]
[1741806465926,2.1122,123.89,123.8,33.82179837]
[1741806466133,10.1856,123.89,123.85,8.0754]
[1741806466325,2.1122,123.89,123.81,280.0945]
[1741806466832,2.1122,123.89,123.86,8.0746]
[1741806467022,2.17376949,123.89,123.86,8.0746]
[1741806467230,0.06156949,123.89,123.84,0.05428796]
[1741806468829,0.06156949,123.89,123.87,8.0738]
[1741806469233,0.06156949,123.89,123.87,8.13150139]
[1741806470133,0.06156949,123.89,123.87,0.05770139]
[1741806471234,8.0737,123.88,123.87,0.05770139]
[1741806475131,0.06156949,123.89,123.87,0.05770139]
[1741806475732,8.0737,123.88,123.87,0.05770139]
[1741806476337,8.13496949,123.89,123.87,0.05770139]
[1741806476638,0.06156949,123.89,123.87,0.05770139]
[1741806477038,8.0737,123.88,123.87,0.05770139]
[1741806479243,8.13496949,123.89,123.87,0.05770139]
[1741806479539,0.06156949,123.89,123.87,0.05770139]
[1741806482339,8.13516949,123.89,123.87,0.05770139]
[1741806482539,8.0737,123.88,123.87,0.05770139]
[1741806483739,8.0754,123.86,123.81,244.4945]
[1741806483940,55.76528627,123.88,123.81,244.4945]
[1741806484335,8.075,123.86,123.81,244.4945]
[1741806484534,55.76528627,123.88,123.81,244.4945]
[1741806484741,8.076,123.85,123.82,8.0771]
[1741806484939,0.05762736,123.86,123.83,0.05765776]
[1741806485240,8.13292736,123.86,123.83,8.13405776]
[1741806485436,0.05762736,123.86,123.83,0.05765776]
[1741806486141,0.05762736,123.86,123.85,8.0757]
[1741806487740,8.13312736,123.86,123.83,0.05765776]
[1741806488140,8.13312736,123.86,123.83,8.13405776]
[1741806488340,8.13312736,123.86,123.83,0.05765776]
[1741806488541,0.05762736,123.86,123.83,0.05765776]
[1741806488841,0.05762736,123.86,123.84,8.0763]
[1741806490644,0.05762736,123.86,123.85,8.0757]
[1741806495938,0.05762736,123.86,123.83,34.37765776]
[1741806496542,0.05762736,123.86,123.84,8.0758]
[1741806496940,0.05762736,123.86,123.85,8.0757]
[1741806498146,0.05762736,123.86,123.83,0.05765776]
[1741806498645,8.0763,123.84,123.76,21.12528627]
[1741806498838,25.60800006,123.85,123.76,33.96]
[1741806498839,21.12528627,123.83,123.76,33.96]
[1741806499243,55.08528627,123.85,123.8,8.0788]
[1741806499443,4.47848743,123.84,123.76,33.96]
[1741806499842,0.05936651,123.81,123.79,0.06025995]
[1741806500245,0.05936651,123.81,123.8,8.0789]
[1741806500439,33.96,123.85,123.8,2.1104]
[1741806500644,21.12528627,123.87,123.8,2.1104]
[1741806500842,4.48197218,123.86,123.8,4.3116]
[1741806501444,0.0573518,123.84,123.82,0.06073699]
[1741806501639,0.0573518,123.84,123.82,8.13793699]
[1741806501842,0.0573518,123.84,123.82,0.06073699]
[1741806502546,4.54183365,123.84,123.82,0.06073699]
[1741806502750,12.61853365,123.84,123.82,0.06073699]
[1741806502943,0.0573518,123.84,123.82,8.13833699]
[1741806503148,0.0573518,123.84,123.82,0.06073699]
[1741806503149,4.54592541,123.84,123.82,0.06073699]
[1741806503850,0.0573518,123.84,123.82,0.06073699]
[1741806504550,0.0573518,123.84,123.82,8.13833699]
[1741806506345,0.0573518,123.84,123.82,0.06073699]
[1741806507046,0.0573518,123.84,123.82,8.13803699]
[1741806507243,0.0573518,123.84,123.82,0.06073699]
[1741806507654,0.0573518,123.84,123.83,8.077]
[1741806510153,0.0573518,123.84,123.82,0.06073699]
[1741806512254,0.0573518,123.84,123.82,8.13833699]
[1741806512450,0.0573518,123.84,123.82,0.06073699]
[1741806512844,0.0573518,123.84,123.82,8.13803699]
[1741806513056,0.0573518,123.84,123.82,0.06073699]
[1741806513447,0.0573518,123.84,123.83,8.077]
[1741806513848,21.12528627,123.88,123.83,8.077]
[1741806514049,21.12528627,123.88,123.82,0.06073699]
[1741806514050,4.51050931,123.87,123.82,33.68073699]
[1741806514354,4.51050931,123.86,123.82,33.62]
[1741806514549,4.51050931,123.85,123.83,8.0766]
[1741806514754,8.0749,123.87,123.83,8.0766]
[1741806514954,4.51067846,123.86,123.82,33.62]
[1741806515254,4.51067846,123.85,123.84,0.05704365]
[1741806515956,4.51067846,123.85,123.84,8.13334365]
[1741806516154,0.0537877,123.86,123.84,0.05704365]
[1741806516456,291.0,123.92,123.87,8.0743]
[1741806516657,56.81018627,123.93,123.87,8.0743]
[1741806517150,8.0715,123.92,123.87,8.0743]
[1741806517546,0.05954489,123.91,123.88,0.0536221]
[1741806518257,0.05954489,123.91,123.88,8.1273221]
[1741806518954,0.05954489,123.91,123.89,8.0731]
[1741806521762,0.05954489,123.91,123.9,8.0724]
[1741806522255,0.05954489,123.91,123.88,0.0536221]
[1741806522455,0.05954489,123.91,123.89,8.0728]
[1741806522951,0.05954489,123.91,123.88,0.0536221]
[1741806523659,0.05954489,123.91,123.89,8.0728]
[1741806526259,88.02111105,124.0,123.9,33.24]
[1741806526562,88.02111105,124.0,123.93,21.12528627]
[1741806526764,88.02111105,124.0,123.94,33.76]
[1741806526961,88.02111105,124.0,123.97,8.0678]
[1741806527263,43.59118723,124.0,123.97,8.0678]
[1741806527463,0.0517521,123.99,123.98,8.0669]
[1741806530165,0.0517521,123.99,123.97,0.05340269]
[1741806530766,0.0517521,123.99,123.98,8.0672]
[1741806532965,0.0517521,123.99,123.97,8.12110269]
[1741806533161,0.0517521,123.99,123.97,0.05340269]
[1741806534364,2.1952521,123.99,123.97,0.05340269]
[1741806534571,0.0517521,123.99,123.97,0.05340269]
[1741806534966,0.0517521,123.99,123.98,8.0672]
[1741806544487,35.2435,124.06,123.98,33.08]
[1741806544674,35.2435,124.06,123.99,23.23098627]
[1741806544982,8.0637,124.04,124.01,8.0649]
[1741806545384,2.1435,124.06,123.99,23.23098627]
[1741806545582,0.05614174,124.04,124.02,8.0644]
[1741806545781,0.05614174,124.04,124.01,0.06033993]
[1741806546488,8.0642,124.03,124.01,0.06033993]
[1741806546989,0.05614174,124.04,124.01,0.06033993]
[1741806547786,8.0643,124.03,124.01,8.12533993]
[1741806548286,0.05614174,124.04,124.01,8.12533993]
[1741806548487,8.11974174,124.04,124.02,8.0645]
[1741806548687,0.05614174,124.04,124.02,8.0645]
[1741806549289,0.05614174,124.04,124.01,8.12533993]
[1741806549586,8.0642,124.03,124.01,8.12533993]
[1741806549990,0.05614174,124.04,124.01,8.12533993]
[1741806550183,8.064,124.03,124.01,8.12533993]
[1741806552593,0.05614174,124.04,124.01,0.06033993]
[1741806553284,8.0642,124.03,124.01,8.12523993]
[1741806554297,0.05614174,124.04,124.02,8.0642]
[1741806554699,0.05614174,124.04,124.01,0.06033993]
[1741806555000,0.05614174,124.04,124.02,8.064]
[1741806555499,8.11974174,124.04,124.02,8.064]
[1741806555796,46.20480752,124.03,124.01,0.06033993]
[1741806555991,8.0646,124.02,124.01,0.06033993]
[1741806556186,46.20480752,124.03,124.01,0.06033993]
[1741806556187,32.72,124.03,124.01,0.06033993]
[1741806556386,0.05614174,124.04,124.01,13.54514745]
[1741806556796,0.05614174,124.04,124.02,8.0642]
[1741806557092,0.05614174,124.04,124.01,0.06033993]
[1741806557297,13.54094926,124.04,124.01,0.06033993]
[1741806557697,0.05614174,124.04,124.01,13.54514745]
[1741806557897,0.05614174,124.04,124.03,21.54880752]
[1741806558093,8.11994174,124.04,124.01,13.54514745]
[1741806558290,0.05614174,124.04,124.01,0.06033993]
[1741806558498,0.05614174,124.04,124.01,8.12523993]
[1741806558698,8.11974174,124.04,124.01,8.12523993]
[1741806559198,8.064,124.03,124.01,8.12523993]
[1741806559398,0.05614174,124.04,124.01,8.12523993]
[1741806559800,8.11974174,124.04,124.01,8.12523993]
[1741806560003,0.05614174,124.04,124.02,8.0643]
[1741806560303,0.05614174,124.04,124.01,0.06033993]
[1741806560602,0.05614174,124.04,124.03,8.064]
[1741806562101,40.7804,124.09,124.02,23.07078776]
[1741806562503,40.7804,124.09,124.05,8.0622]
[1741806562703,40.7804,124.09,124.02,23.07078776]
[1741806563204,0.05762608,124.07,124.04,0.05428412]
[1741806563602,0.05762608,124.07,124.05,8.0627]
[1741806563909,0.05762608,124.07,124.04,0.05428412]
[1741806564307,0.05762608,124.07,124.05,8.0623]
[1741806564808,0.05762608,124.07,124.04,0.05428412]
[1741806565007,8.11932608,124.07,124.04,0.05428412]
[1741806565508,0.05762608,124.07,124.04,0.05428412]
[1741806566810,0.05762608,124.07,124.05,8.0623]